Cogmind - Beta 9.6 @@@ ROGUE MODE // 2020.07.31 @ 14:52:11 // Winter2019/RPGLIKE Player: Hermelin Result: Destroyed by DAS Turret with DAS Cannon Performance ------------- Evolutions (0) 0 Regions Visited (3) 600 Robots Destroyed (49) 245 Value Destroyed (794) 794 Prototype IDs (2) 40 Alien Tech Used (0) 0 Bonus (-237) -237 TOTAL SCORE: 1442 Bonus ------- Friendly Fire -237 Cogmind --------- Core Integrity 0/750 Matter 205/300 Energy 125/125 System Corruption 1% Temperature Cool (0) Movement Flying (120) Ox1 Location -10/Exiles Parts ------- > --- POWER (1) -------- Light Ion Engine > --- PROPULSION (2) --- VTOL Module > --- UTILITY (2) ------ Improved Heat Sink Armor Integrity Analyzer > --- WEAPON (3) ------- Beamcaster Grenade Launcher Mining Claw > --- INVENTORY (2) ---- Beamcaster Signal Generator Peak State ------------ > --- POWER ------------ Light Ion Engine > --- PROPULSION ------- VTOL Module VTOL Module > --- UTILITY ---------- Improved Heat Sink Armor Integrity Analyzer > --- WEAPON ----------- Beamcaster Grenade Launcher Mining Claw > --- INVENTORY -------- Beamcaster Signal Generator [Rating: 18] Favorites ----------- Power Light Ion Engine Engine Light Ion Engine Propulsion VTOL Module Treads Light Treads Wheel Wheel Hover Unit Backup Propulsion I Flight Unit VTOL Module Utility Hardened Light Armor Plating Device Improved Terrain Scanner Processor Armor Integrity Analyzer Protection Hardened Light Armor Plating Weapon Mace Energy Gun Beamcaster Ballistic Gun Light Assault Rifle Launcher Grenade Launcher Impact Weapon Mace Slashing Weapon Mining Claw Build | -11 -10 -10 -10 ------- Run | Scr Mat Min Exi Slots Evolved 4 | 3 1 . . Power . | . . . . Propulsion 1 | 1 . . . Utility 1 | 1 . . . Weapon 2 | 1 1 . . Parts Attached 29 | 6 14 9 . Power 3 | 1 2 . . Engine 3 | 1 2 . . Core . | . . . . Reactor . | . . . . Propulsion 6 | 1 5 . . Treads 1 | . 1 . . Leg . | . . . . Wheel 1 | 1 . . . Hover . | . . . . Flight 4 | . 4 . . Utility 8 | 2 3 3 . Device 2 | 1 . 1 . Storage . | . . . . Processor 2 | 1 1 . . Hackware . | . . . . Protection 4 | . 2 2 . Artifact . | . . . . Weapon 12 | 2 4 6 . Energy Gun 1 | . . 1 . Energy Cannon . | . . . . Ballistic Gun 2 | 2 . . . Ballistic Cannon . | . . . . Launcher 2 | . . 2 . Special Weapon . | . . . . Impact Weapon 5 | . 3 2 . Slashing Weapon 2 | . 1 1 . Piercing Weapon . | . . . . Special Melee Weapon . | . . . . Unidentified Prototypes . | . . . . Parts Lost 4 | . 1 2 1 Power . | . . . . Propulsion 2 | . 1 . 1 Utility 2 | . . 2 . Weapon . | . . . . Highest Loss Streak 1 | . 1 1 1 Average Slot Usage (%) 97 | . 99 98 88 Engine 12 | . 13 12 12 Treads 1 | . 1 . . Wheel 1 | . 1 . . Hover 9 | . 17 . . Flight 12 | . 5 25 13 Device 9 | . 11 2 12 Processor 6 | . 1 12 12 Protection 9 | . 12 9 . Energy Gun 2 | . . 2 12 Launcher 3 | . . 5 12 Impact Weapon 18 | . 26 16 . Slashing Weapon 8 | . 5 11 12 Naked Turns . | . . . . Heaviest Build 15 | 8 15 15 14 Greatest Support 17 | 15 17 15 15 Greatest Overweight (x) 1 | . 1 . 1 Average Overweight (x) . | . . . . Largest Inventory Capacity 2 | 2 2 2 2 Average Capacity 1 | 1 2 2 2 Most Carried 2 | 2 2 2 2 Average Carried 1 | 1 1 1 2 Final Capacity 2 | 2 2 2 2 Final Carried 2 | 2 2 2 2 Class Distribution -------------------- 100% | Mutant Dominant Class ---------------- Mutant | -10/Materials Mutant | -10/Mines Mutant | -10/Exiles Resources | -11 -10 -10 -10 ----------- Run | Scr Mat Min Exi Matter Collected 564 | 264 135 155 10 Remotely . | . . . . Salvage Created 1018 | 30 820 149 19 Parts 55 | 4 38 13 . Haulers Intercepted 2 | . 2 . . Recyclers Shooed 2 | . 2 . . Parts Field Recycled . | . . . . Retrieved Matter . | . . . . Parts Self-Destructed . | . . . . Prevented . | . . . . Kills | -11 -10 -10 -10 ------- Run | Scr Mat Min Exi Combat Hostiles Destroyed 29 | . 16 6 7 Melee 9 | . 8 1 . Guns 2 | . . . 2 AOE 9 | . . 4 5 Classes Destroyed 11 | 1 7 2 1 Worker 6 | . 4 2 . Builder 1 | . . 1 . Tunneler 2 | 1 . 1 . Hauler 2 | . 2 . . Recycler 2 | . 1 1 . Mechanic 1 | . . 1 . Operator 4 | . 4 . . Watcher 2 | . 2 . . Swarmer 5 | . 3 2 . Grunt 16 | . 13 3 . Assembled 7 | . . . 7 Best Kill Streak 6 | 1 4 6 5 Combat Bots Only 5 | . 3 3 5 Max Kills in Single Turn 2 | 1 1 2 2 Gunslinging . | . . . . Exploded 2 | . . 1 2 Melee 1 | . 1 1 . Uniques/NPCs Destroyed 1 | . . 1 . 8R-AWN (-10/Mines) Combat | -11 -10 -10 -10 -------- Run | Scr Mat Min Exi Damage Taken 2306 | . 787 995 524 Core 1687 | . 554 690 443 Absorbed by Shields . | . . . . Redirected to Core 1129 | . 426 425 278 Core Remaining (%) 100 | 100 . . . Volleys Fired 43 | 2 . 7 34 Largest 2 | 2 . 1 1 Hottest 75 | 40 . 30 75 Shots Fired 45 | 4 . 7 34 Gun 27 | 4 . . 23 Cannon . | . . . . Launcher 18 | . . 7 11 Special . | . . . . Kinetic 4 | 4 . . . Thermal 23 | . . . 23 Explosive 18 | . . 7 11 Electromagnetic . | . . . . Robot Hit Streak 5 | 3 . 5 5 Robot Miss Streak 2 | 1 . 1 2 Penetration Max . | . . . . Secondary Targets . | . . . . Shots Hit Robots 164 | 3 88 54 19 Core Hits 61 | 2 17 24 18 Critical Hits . | . . . . Critical Kills . | . . . . Critical Parts Destroyed . | . . . . Melee Attacks 167 | . 108 59 . Impact 99 | . 81 18 . Slashing 68 | . 27 41 . Piercing . | . . . . Sneak Attacks 20 | . 18 2 . Combat Hostiles 3 | . 3 . . Follow-up Attacks 32 | . 15 17 . Damage Inflicted 5603 | 24 2838 1985 756 Guns 362 | 24 . . 338 Cannons . | . . . . Explosions 1080 | . . 662 418 Melee 4161 | . 2838 1323 . Ramming . | . . . . Kinetic 24 | 24 . . . Thermal 338 | . . . 338 Explosive 1080 | . . 662 418 Electromagnetic . | . . . . Impact 2287 | . 1938 349 . Slashing 1874 | . 900 974 . Piercing . | . . . . Highest Corruption 1 | . 1 1 1 Average Corruption 1 | . 1 1 1 Corruption Purged . | . . . . Effects 7 | . 1 5 1 Message Errors 2 | . . 2 . Data Loss (minor) 4 | . . 3 1 Targeting Errors 1 | . 1 . . Overload Shots . | . . . . Overflow Damage 727 | . 590 134 3 Projectiles . | . . . . Explosions 36 | . . 33 3 Melee 691 | . 590 101 . Knockbacks 10 | . 9 1 . Impact 10 | . 9 1 . Kinetic . | . . . . Secondary . | . . . . Self-Inflicted Damage 3 | . . . 3 Shots 1 | . . . 1 Rammed . | . . . . Targets Rammed . | . . . . Kicked . | . . . . Crushed . | . . . . Highest Temperature 72 | . 1 34 72 Average Temperature 22 | . 1 14 26 Received Heat Transfer 366 | . 312 54 . Siege Activations . | . . . . Robots Corrupted . | . . . . Combat Hostiles . | . . . . Parts Fried 13 | . 13 . . Impact Corruptions 29 | . 27 2 . Robots Melted . | . . . . Combat Hostiles . | . . . . Parts Melted . | . . . . Heat Transferred 592 | . . . 592 Parts Sabotaged . | . . . . Parts Stolen . | . . . . Parts Stripped . | . . . . Power Chain Reactions . | . . . . Missiles Intercepted . | . . . . Alert | -11 -10 -10 -10 ------- Run | Scr Mat Min Exi Peak Influence 409 | 5 409 251 . Average Influence 202 | 1 247 134 . Maximum Alert Level 2 | . 2 1 . Low Security (%) 53 | 100 30 92 . Level 1 41 | . 60 7 . Level 2 5 | . 8 . . Level 3 . | . . . . Level 4 . | . . . . Level 5 . | . . . . High Security . | . . . . Max Security . | . . . . Squads Dispatched 8 | . 7 1 . Investigation 3 | . 3 . . Extermination . | . . . . Reinforcement 4 | . 4 . . Assault 1 | . . 1 . Garrison . | . . . . Intercept . | . . . . Construction Impeded . | . . . . Haulers Reinforced . | . . . . Stealth | -11 -10 -10 -10 --------- Run | Scr Mat Min Exi Distress Signals 4 | . 4 . . Communications Jammed . | . . . . Distress Signals . | . . . . Times Spotted 44 | . 28 7 9 Peak Tracking Total 8 | . 5 3 8 Tactical Retreats 3 | . 2 . 1 Traps | -11 -10 -10 -10 ------- Run | Scr Mat Min Exi Traps Triggered 1 | . 1 . . Indirectly . | . . . . Trap Hack Attempts . | . . . . Triggered . | . . . . Disarmed . | . . . . Reprogrammed . | . . . . Reused . | . . . . Traps Extracted . | . . . . Installed . | . . . . Triggered . | . . . . Machines | -11 -10 -10 -10 ---------- Run | Scr Mat Min Exi Machines Disabled 5 | . 1 . 4 Max in Single Turn 1 | . 1 . 1 Machines Sabotaged . | . . . . Garrisons Compromised . | . . . . Overloaded Fab Kills . | . . . . Fab Network Shutdowns . | . . . . Hacking | -11 -10 -10 -10 --------- Run | Scr Mat Min Exi Machines Accessed 8 | . 7 1 . Terminals 6 | . 5 1 . Fabricators . | . . . . Repair Stations 1 | . 1 . . Recycling Units 1 | . 1 . . Scanalyzers . | . . . . Garrison Access . | . . . . Total Hacks 37 | . 33 4 . Successful 19 | . 18 1 . Failed 17 | . 14 3 . Catastrophic 1 | . . 1 . Database Lockouts 2 | . 2 . . Manual 24 | . 19 4 1 Terminals 30 | . 26 4 . Fabricators . | . . . . Repair Stations 3 | . 3 . . Recycling Units 4 | . 4 . . Scanalyzers . | . . . . Garrison Access . | . . . . Terminal Hacks 11 | . 10 1 . Part Schematic 1 | . . 1 . Robot Analysis 5 | . 5 . . Prototype ID Bank 1 | . 1 . . Recall Investigation 1 | . 1 . . Hauler Manifests 1 | . 1 . . Zone Layout 2 | . 2 . . Fabricator Hacks . | . . . . Repair Station Hacks 2 | . 2 . . Refit 2 | . 2 . . Recycling Unit Hacks 1 | . 1 . . Report Inventory 1 | . 1 . . Scanalyzer . | . . . . Garrison Access Hacks . | . . . . Unauthorized Hacks 5 | . 5 . . Terminals 4 | . 4 . . Botnet 4 | . 4 . . Fabricators . | . . . . Repair Stations . | . . . . Recycling Units 1 | . 1 . . Reject 1 | . 1 . . Scanalyzers . | . . . . Garrison Access . | . . . . Data Cores Recovered . | . . . . Used . | . . . . Hacking Detections 6 | . 5 1 . Full Trace Events 2 | . 2 . . Feedback Events . | . . . . Feedback Blocked . | . . . . Robot Schematics Acquired . | . . . . Robots Built . | . . . . Matter . | . . . . Time . | . . . . Total Robot Build Rating . | . . . . Part Schematics Acquired 1 | . . 1 . Parts Built . | . . . . Matter . | . . . . Time . | . . . . Total Part Build Rating . | . . . . Parts Repaired . | . . . . Time . | . . . . Parts Recycled . | . . . . Recycled Matter . | . . . . Retrieved Matter . | . . . . Retrieved Components . | . . . . Parts Scanalyzed . | . . . . Part Schematics Acquired . | . . . . Parts Damaged . | . . . . Bothacking | -11 -10 -10 -10 ------------ Run | Scr Mat Min Exi Used RIF Installer . | . . . . Robots Hacked . | . . . . Non-combat . | . . . . Combat . | . . . . Robot Hacks Applied . | . . . . Relay Couplers Released . | . . . . Robots Rewired . | . . . . Allies Hacked . | . . . . Hacks Repelled . | . . . . Allies | -11 -10 -10 -10 -------- Run | Scr Mat Min Exi Total Allies 1 | . . 1 . Largest Group 1 | . . 1 . Highest-Rated Group 31 | . . 31 . Highest-Rated Ally 31 | . . 31 . Total Orders . | . . . . Ally Attacks 3 | . . 3 . Total Damage 63 | . . 63 . Kills 1 | . . 1 . Allies Corrupted . | . . . . Allies Melted . | . . . . Intel | -11 -10 -10 -10 ------- Run | Scr Mat Min Exi Robot Analysis Total 5 | . 5 . . Derelict Logs Recovered 2 | . . 2 . Drone Launches . | . . . . Drone Recoveries . | . . . . Exploration | -11 -10 -10 -10 ------------- Run | Scr Mat Min Exi Turns Passed 1757 | 43 920 482 312 Spaces Moved 1702 | 35 758 697 212 Core 3 | 2 1 . . Treads . | . . . . Legs . | . . . . Wheels 128 | 33 95 . . Hover 439 | . 439 . . Flight 1132 | . 223 697 212 Fastest Speed 37 | 50 37 37 37 Average Speed 63 | 78 74 37 110 Slowest Speed 120 | 80 120 37 120 Overloaded Moves . | . . . . Propulsion Burnouts . | . . . . Robots Hopped 2 | . . 2 . Cave-ins Triggered . | . . . . Exploration Rate (%) 62 | 4 92 99 53 Regions Visited 3 Branch Regions 2 Pre-discovered Areas . | . . . . Known Exits Taken . | . . . . Unknown Exits Taken 3 | 1 1 1 . Scrap Searched 2 | . . 2 . Spaces Dug 5 | . 1 . 4 Terrain Destroyed 67 | . 1 28 38 Melee 1 | . 1 . . Projectile . | . . . . AOE 66 | . . 28 38 Actions | -11 -10 -10 -10 --------- Run | Scr Mat Min Exi Total 2092 | 44 968 824 256 Wait 118 | . 68 43 7 Move 1695 | 34 757 692 212 Hop 2 | . . 2 . Pick Up 9 | 2 4 3 . Fast Attach 22 | 6 11 5 . Attach 2 | . 1 1 . Detach . | . . . . Swap 5 | . 2 3 . Drop 21 | . 15 6 . Fire 43 | 2 . 7 34 Melee 127 | . 86 41 . Ram . | . . . . Kick . | . . . . Crush . | . . . . Escape Stasis . | . . . . Rewire . | . . . . Trap . | . . . . Miscellaneous 48 | . 24 21 3 Route ------- -11/Scrapyard -10/Materials (discovered 5 exits: [*Mat x3] / *Min x2) -10/Mines (discovered 3 exits: [*Mat x2] / *Exi) -10/Exiles (discovered 1 exit: [*Min]) History --------- Turn | Location | Event 7 | -11/Scrapyard | Discovered new exit (range 16) 10 | -11/Scrapyard | Upgraded with Propulsion slot (x1) 10 | -11/Scrapyard | Upgraded with Utility slot (x1) 10 | -11/Scrapyard | Upgraded with Weapon slot (x1) 44 | -11/Scrapyard | Entered Materials 237 | -10/Materials | Discovered new exit (range 8) 316 | -10/Materials | Build established: Mutant 349 | -10/Materials | Discovered new exit (range 9) 377 | -10/Materials | Discovered new exit (range 15) 518 | -10/Materials | Reached level 2 538 | -10/Materials | Upgraded with Weapon slot (x1) 702 | -10/Materials | Discovered new exit (range 17) 718 | -10/Materials | Central database locked down 850 | -10/Materials | Discovered new exit (range 16) 964 | -10/Materials | Entered Mines 974 | -10/Mines | Joined a pair of Derelicts in attacking an 0b10 outpost 1033 | -10/Mines | Learned 8 Materials zone layouts 1034 | -10/Mines | Assembled infested the area 1080 | -10/Mines | Met 8R-AWN 1089 | -10/Mines | Attacked by 8R-AWN 1126 | -10/Mines | Discovered new exit (range 9) 1138 | -10/Mines | Core integrity fell below 50% 1192 | -10/Mines | Core integrity fell below 20% 1192 | -10/Mines | Destroyed 8R-AWN 1240 | -10/Mines | Learned Materials interactive machine intel 1249 | -10/Mines | Met a Derelict testing a Signal Generator 1254 | -10/Mines | Found Signal Generator 1299 | -10/Mines | Reached level 3 1429 | -10/Mines | Discovered new exit (range 5) 1444 | -10/Mines | Discovered new exit (range 5) 1446 | -10/Mines | Entered Exiles 1446 | -10/Exiles | Attacked by the Exiles 1454 | -10/Exiles | Discovered new exit (range 14) 1758 | -10/Exiles | Destroyed by DAS Turret with DAS Cannon Last Messages --------------- 01478_ The unstable cave ceiling collapses. 01479_ as-92490 destroyed. 01480_ VTOL Module destroyed. 01481_ Destroyed Asb. Hover Unit. 01495_ The unstable cave ceiling collapses. 01500_ as-81363 destroyed. 01506_ Destroyed Asb. Blade. 01508_ as-17569 destroyed. 01511_ Acquired 1 matter. 01528_ Acquired 9 matter. 01565_ Assembled Analyzer disabled. 01571_ Machine disabled. 01583_ Destroyed Asb. P-torch. 01585_ as-41452 destroyed. 01593_ Used Protomatter to restore core integrity (+51, depleted) 01662_ Connecting with EX-Vault Access... 01662_ Current location identified: Exiles >>\\1234 Not this time, boltface! 01669_ System corrupted: Component data lost. Map ----- +----------------------------------------------------+ | ?????????????????????????????###"" #?????????? | | ???????????????????????????""""""" ##????????? | | ??????????????????????????""" " "" ##???##### | | ????????????????????????" """ " #####"""" | | ????????????????????????" " " "" | | ?????????????????????? "" | | ?????????????????????? " | | ?????????????????????? | | ??????????????????????? | | ?????????????????????? | | ??????????????????? ? """""" | | ????????????????? ######""" | | ??????????????? ""#?????#####""" | | ?????????????? """???????????##""" | | ????????????? ""??????????????#"""" | | ????????????? "?????????????##"" | | ???????????? t ########??####"""" | | ????????????" ##aaa####""" | | ???????????? """" | | ????????????" | | ???????????"""" | | ???????????# " | | ????????????" " "" " | | ????????????"""" ""## ##""" " " "" | | ????????????"" " #### ######""" """ | | ???????????#" @""""##??# #????###""""# | | ????????????""" """#???# #??????###### | | ????????????# ""##???! ???????????? | | ????????????#"" """##???#" ??????????? | | ?????????????#""" ##????#" ??????????? | | ??????????????#"""" ##?????#!!""!"?????????? | | ???????????????## #??????########????????? | | ????????????????##### ##??????????????????????? | | ????????????????????## ????????????????????????? | | ?????????????????????# ????????????????????????? | | ?????????????????????# ????????????????????????? | | ?????????????????????# ????????????????????????? | | ?????????????????????# ????????????????????????? | | ?????????????????????# ????????????????????????? | | ?????????????????????# ????????????????????????? | | ?????????????????????# ??????????????????????????? | | ?????????????????????????????????????????????????? | | ?????????????????????????????????????????????????? | | ?????????????????????????????????????????????????? | | ?????????????????????????????????????????????????? | | ?????????????????????????????????????????????????? | | ?????????????????????????????????????????????????? | | ?????????????????????????????????????????????????? | | ?????????????????????????????????????????????????? | | ?????????????????????????????????????????????????? | +----------------------------------------------------+ Best States ------------- Heat Dissipation 39 Energy Generation 10 Energy Capacity 250 Matter Stores 300 Matter Capacity 300 Sight Range 17 Terrain Scan Range 16 Terrain Scan Density 260 Armor Coverage 150 Evasion (%) 62 Armor Integrity Analysis 33 Offensive Hacking 5 Defensive Hacking 5 Item Schematics ----------------- Flight Unit | -10/Mines | Hacked Robot Schematics ------------------ None Fabricated ------------ Nothing Alien Tech Used ----------------- None Achievements -------------- None Challenges ------------ None RPGLIKE | -11 -10 -10 -10 --------- Run | Scr Mat Min Exi Levels Raised 2 | . 1 1 . XP Earned 6615 | 3000 2265 1150 200 XP Spent 4395 | 2990 1405 . . Upgrades 17 | 11 6 . . Propulsion Slot 1 | 1 . . . Utility Slot 1 | 1 . . . Weapon Slot 2 | 1 1 . . Core Integrity 3 | . 3 . . Mass Support 1 | 1 . . . Inventory Capacity 2 | 2 . . . Sight Range 1 | 1 . . . Terrain Scan Density 2 | 2 . . . Melee Accuracy 2 | . 2 . . Hack Attack % 1 | 1 . . . Hack Defense % 1 | 1 . . . Protomatter Created 338 | . 223 98 17 Integrity Restored 971 | . 513 407 51 Core 899 | . 510 338 51 Parts 72 | . 3 69 . Protomatter Decayed 204 | . 38 166 . Game ------ Seed HeatSpectralRipper Manual? 0 Play Time 00:28:12 Cumulative 128.8 hours Start 2020.07.31 @ 14:26:29 End 2020.07.31 @ 14:52:11 Sessions 1 Manual Loads 0 Difficulty Rogue Special Mode Winter2019/RPGLIKE Game No. 55 Rogue 55 Adventurer 0 Explorer 0 Win Type - Total 2 Types 1/0/0/1/0/0/0 Lore% 75 Gallery% 66 Achievement% 64 Wizard Run 0 Options --------- ASCII 0 Keyboard 0 Movement Numpad Keybinds 0 Fullscreen 1 Font 14/SmallcapsGlow Map View 84x54 Tactical HUD 1 Map Filters NONE Filters NONE Steam 1 RUN: 024101f0-4407-4f0b-afbb-6efed670d902